bitfinex/quotes_BTCUSD_20250928
["timestamp","ask_amount","ask_price","bid_price","bid_amount"]
[1759059459652,7.83775289,109650.0,109640.0,0.02220226]
[1759059460104,7.87535871,109650.0,109640.0,0.02220226]
[1759059465970,7.82191417,109650.0,109640.0,0.02220226]
[1759059468003,7.45515289,109650.0,109640.0,0.02220226]
[1759059468208,7.83775289,109650.0,109640.0,0.02220226]
[1759059469032,7.45515289,109650.0,109640.0,0.02220226]
[1759059469291,7.83775289,109650.0,109640.0,0.02220226]
[1759059469902,7.45515289,109650.0,109640.0,0.02220226]
[1759059470111,7.83775289,109650.0,109640.0,0.02220226]
[1759059471161,7.85206523,109650.0,109640.0,0.02220226]
[1759059474798,8.13742523,109650.0,109640.0,0.02220226]
[1759059475006,8.23250523,109650.0,109640.0,0.02220226]
[1759059475583,7.75694523,109650.0,109640.0,0.02220226]
[1759059475784,8.23246523,109650.0,109640.0,0.02220226]
[1759059477254,7.75698523,109650.0,109640.0,0.02220226]
[1759059477565,8.28655289,109650.0,109640.0,0.02220226]
[1759059477984,8.19143289,109650.0,109640.0,0.02220226]
[1759059478097,8.28651289,109650.0,109640.0,0.02220226]
[1759059478725,7.90395289,109650.0,109640.0,0.02220226]
[1759059478933,7.69150506,109650.0,109640.0,0.02220226]
[1759059479154,7.97898506,109650.0,109640.0,0.02220226]
[1759059479451,8.07406506,109650.0,109640.0,0.02220226]
[1759059479788,7.69150506,109650.0,109640.0,0.02220226]
[1759059479970,7.69150506,109650.0,109640.0,0.02748226]
[1759059480180,8.07406506,109650.0,109640.0,0.02748226]
[1759059480423,8.08837732,109650.0,109640.0,0.02748226]
[1759059480986,7.70581732,109650.0,109640.0,0.02748226]
[1759059481226,8.08837732,109650.0,109640.0,0.02748226]
[1759059484503,8.08837732,109650.0,109640.0,0.02429226]
[1759059485857,7.90886962,109650.0,109640.0,0.02429226]
[1759059489055,7.89455736,109650.0,109640.0,0.02429226]
[1759059489854,7.89455736,109650.0,109640.0,0.02220226]
[1759059492006,7.90886951,109650.0,109640.0,0.02220226]
[1759059499943,7.89455736,109650.0,109640.0,0.02220226]
[1759059502958,7.90886954,109650.0,109640.0,0.02220226]
[1759059506031,7.90886954,109650.0,109640.0,0.02428226]
[1759059511522,7.89455736,109650.0,109640.0,0.02428226]
[1759059512131,7.89455736,109650.0,109640.0,0.02220226]
[1759059514438,7.90887157,109650.0,109640.0,0.02220226]
[1759059517288,7.73913675,109650.0,109640.0,0.02220226]
[1759059520095,7.76242939,109650.0,109640.0,0.02220226]
[1759059520521,7.86242939,109650.0,109640.0,0.02220226]
[1759059520944,7.84811518,109650.0,109640.0,0.02220226]
[1759059521365,7.82482254,109650.0,109640.0,0.02220226]
[1759059521580,7.44926254,109650.0,109640.0,0.02220226]
[1759059521787,8.21614254,109650.0,109640.0,0.02220226]
[1759059522226,7.45326254,109650.0,109640.0,0.02220226]
[1759059522451,8.21614254,109650.0,109640.0,0.02220226]
[1759059523713,8.23045625,109650.0,109640.0,0.02220226]
[1759059525193,7.46757625,109650.0,109640.0,0.02220226]
[1759059525400,8.23053625,109650.0,109640.0,0.02220226]
[1759059527586,7.46757625,109650.0,109640.0,0.02220226]
[1759059527789,8.23053625,109650.0,109640.0,0.02220226]
[1759059528012,8.21622254,109650.0,109640.0,0.02220226]
[1759059531290,8.23053626,109650.0,109640.0,0.02220226]
[1759059531710,8.04453978,109650.0,109640.0,0.02220226]
[1759059533662,7.88328354,109650.0,109640.0,0.02220226]
[1759059533915,7.12032354,109650.0,109640.0,0.02220226]
[1759059534106,7.88328354,109650.0,109640.0,0.02220226]
[1759059534557,7.12032354,109650.0,109640.0,0.02220226]
[1759059534707,7.12032354,109650.0,109640.0,0.02423226]
[1759059534908,7.88328354,109650.0,109640.0,0.02423226]
[1759059535373,7.88328354,109650.0,109640.0,0.02220226]
[1759059535544,7.12032354,109650.0,109640.0,0.02220226]
[1759059535740,7.88328354,109650.0,109640.0,0.02220226]
[1759059536372,7.12032354,109650.0,109640.0,0.02745226]
[1759059536578,7.88328354,109650.0,109640.0,0.02745226]
[1759059537412,7.40768354,109650.0,109640.0,0.02745226]
[1759059537616,7.86896982,109650.0,109640.0,0.02745226]
[1759059537827,7.86892982,109650.0,109640.0,0.02745226]
[1759059538672,7.10600982,109650.0,109640.0,0.02745226]
[1759059538903,7.86892982,109650.0,109640.0,0.02745226]
[1759059539157,7.10600982,109650.0,109640.0,0.02745226]
[1759059539397,7.86892982,109650.0,109640.0,0.02745226]
[1759059539858,7.39332982,109650.0,109640.0,0.02745226]
[1759059540062,7.86892982,109650.0,109640.0,0.02745226]
[1759059540276,7.77380982,109650.0,109640.0,0.02745226]
[1759059540515,7.88324374,109650.0,109640.0,0.02745226]
[1759059541855,7.88324374,109650.0,109640.0,0.02423226]
[1759059545225,7.88324374,109650.0,109640.0,0.02745226]
[1759059547773,7.88324374,109650.0,109640.0,0.02220226]
[1759059548853,7.86892982,109650.0,109640.0,0.02220226]
[1759059551577,7.88324377,109650.0,109640.0,0.02220226]
[1759059555391,7.66594923,109650.0,109640.0,0.02220226]
[1759059558091,7.68924187,109650.0,109640.0,0.02220226]
[1759059560385,7.67492792,109650.0,109640.0,0.00789226]
[1759059562194,6.91200792,109650.0,109640.0,0.00789226]
[1759059562404,7.67488792,109650.0,109640.0,0.00789226]
[1759059562829,6.91200792,109650.0,109640.0,0.00789226]
[1759059563019,7.67488792,109650.0,109640.0,0.00789226]
[1759059563457,7.68920249,109650.0,109640.0,0.00789226]
[1759059565524,7.66594985,109650.0,109640.0,0.00789226]
[1759059566623,7.21714985,109650.0,109640.0,0.00789226]
[1759059567273,7.20283528,109650.0,109640.0,0.00789226]
[1759059570141,7.21714993,109650.0,109640.0,0.00789226]
[1759059570602,6.45422993,109650.0,109640.0,0.00789226]
[1759059570820,7.21710993,109650.0,109640.0,0.00789226]
[1759059571034,6.45422993,109650.0,109640.0,0.00789226]
[1759059571248,7.21710993,109650.0,109640.0,0.00789226]
[1759059571477,6.45422993,109650.0,109640.0,0.00789226]
[1759059571702,7.21710993,109650.0,109640.0,0.00789226]
[1759059572383,6.45422993,109650.0,109640.0,0.00789226]
[1759059572589,7.21710993,109650.0,109640.0,0.00789226]
[1759059573672,6.45422993,109650.0,109640.0,0.00789226]
[1759059573894,7.21710993,109650.0,109640.0,0.00789226]
[1759059577316,7.20279528,109650.0,109640.0,0.00789226]
[1759059580158,7.03303135,109650.0,109640.0,0.00789226]
[1759059581284,7.04734574,109650.0,109640.0,0.00789226]
[1759059582994,6.57170574,109650.0,109640.0,0.00789226]
[1759059583205,6.28446574,109650.0,109640.0,0.00789226]
[1759059583418,7.04734574,109650.0,109640.0,0.00789226]
[1759059583841,6.95222574,109650.0,109640.0,0.00789226]
[1759059584092,7.04734574,109650.0,109640.0,0.00789226]
[1759059584967,6.95218574,109650.0,109640.0,0.00789226]
[1759059585186,7.04730574,109650.0,109640.0,0.00789226]
[1759059585401,6.28446574,109650.0,109640.0,0.00789226]
[1759059585614,7.04730574,109650.0,109640.0,0.01308226]
[1759059589751,6.28446574,109650.0,109640.0,0.01308226]
[1759059590177,7.04730574,109650.0,109640.0,0.01308226]
[1759059591722,6.87707203,109650.0,109640.0,0.01308226]
[1759059592857,6.40143203,109650.0,109640.0,0.01308226]
[1759059593070,6.87707203,109650.0,109640.0,0.01308226]
[1759059595717,6.87707203,109650.0,109640.0,0.01001226]
[1759059597721,6.97331203,109650.0,109640.0,0.01001226]
[1759059597941,6.86271764,109650.0,109640.0,0.01001226]
[1759059598810,6.87703161,109650.0,109640.0,0.01001226]
[1759059599506,6.11423161,109650.0,109640.0,0.01001226]
[1759059599958,6.78832014,109650.0,109640.0,0.01294226]
[1759059600395,6.02552014,109650.0,109640.0,0.01294226]
[1759059600631,6.75816824,109650.0,109640.0,0.01294226]
[1759059600874,6.78832014,109650.0,109640.0,0.01294226]
[1759059601090,6.01120617,109650.0,109640.0,0.01294226]
[1759059601312,6.81019167,109650.0,109640.0,0.01294226]
[1759059603808,6.78831973,109650.0,109640.0,0.01294226]
[1759059604491,6.57390706,109650.0,109640.0,0.01294226]
[1759059606175,6.54375516,109650.0,109640.0,0.01294226]
[1759059607784,6.5294416,109650.0,109640.0,0.01294226]
[1759059610192,6.52948811,109650.0,109640.0,0.01294226]
[1759059610610,6.54380037,109650.0,109640.0,0.01294226]
[1759059611497,6.63251184,109650.0,109640.0,0.01294226]
[1759059618129,6.61819958,109650.0,109640.0,0.01294226]
[1759059622253,6.63251219,109650.0,109640.0,0.01294226]
[1759059624644,6.63251219,109650.0,109640.0,0.01001226]
[1759059624856,6.63251219,109650.0,109640.0,0.00789226]
[1759059626359,6.70537231,109650.0,109640.0,0.00789226]
[1759059626849,6.6910597,109650.0,109640.0,0.00789226]
[1759059628431,7.1398597,109650.0,109640.0,0.00789226]
[1759059629696,7.15417392,109650.0,109640.0,0.00789226]
[1759059632398,7.13475834,109650.0,109640.0,0.00789226]
[1759059633981,7.1114657,109650.0,109640.0,0.00789226]
[1759059636376,6.3486657,109650.0,109640.0,0.00789226]
[1759059636821,7.1113057,109650.0,109640.0,0.00789226]
[1759059638162,7.0161857,109650.0,109640.0,0.00789226]
[1759059638394,7.1113057,109650.0,109640.0,0.00789226]
[1759059644499,7.09699148,109650.0,109640.0,0.00789226]
[1759059645577,6.33435148,109650.0,109640.0,0.00789226]
[1759059645792,6.91316001,109650.0,109640.0,0.01296226]
[1759059646005,7.00828001,109650.0,109640.0,0.01296226]
[1759059647294,7.02259366,109650.0,109640.0,0.01296226]
[1759059647691,6.83715102,109650.0,109640.0,0.01296226]
[1759059648404,6.82283737,109650.0,109640.0,0.01296226]
[1759059648598,6.91154884,109650.0,109640.0,0.01296226]
[1759059651496,6.92586308,109650.0,109640.0,0.01296226]
[1759059651922,6.04435971,109650.0,109640.0,0.01296226]
[1759059652140,6.42647971,109650.0,109640.0,0.01296226]
[1759059652364,5.25555971,109650.0,109640.0,0.01296226]
[1759059652577,5.63767971,109650.0,109640.0,0.01296226]
[1759059652790,5.97767971,109650.0,109640.0,0.01296226]
[1759059653225,6.06639118,109650.0,109640.0,0.01296226]
[1759059654340,5.97767971,109650.0,109640.0,0.01296226]
[1759059658554,5.96336547,109650.0,109640.0,0.01296226]
[1759059661428,5.97767848,109650.0,109640.0,0.01296226]
[1759059666854,5.96336547,109650.0,109640.0,0.01296226]
[1759059671309,5.9776777,109650.0,109640.0,0.01296226]
[1759059671897,6.01311569,109650.0,109640.0,0.01296226]
[1759059676598,5.9776777,109650.0,109640.0,0.01296226]
[1759059677033,5.76570968,109650.0,109640.0,0.01296226]
[1759059677496,5.75139745,109650.0,109640.0,0.01296226]
[1759059680546,5.76570968,109650.0,109640.0,0.01296226]
[1759059687399,5.75139745,109650.0,109640.0,0.01296226]
[1759059689664,5.84010892,109650.0,109640.0,0.01296226]
[1759059690456,5.85442114,109650.0,109640.0,0.01296226]
[1759059693172,5.69187408,109650.0,109640.0,0.01296226]
[1759059693394,5.60316261,109650.0,109640.0,0.01296226]
[1759059696634,5.22104261,109650.0,109640.0,0.01296226]
[1759059696867,5.60300261,109650.0,109640.0,0.01296226]
[1759059698059,5.22104261,109650.0,109640.0,0.01296226]
[1759059698261,5.60300261,109650.0,109640.0,0.01296226]
[1759059698688,5.58869039,109650.0,109640.0,0.01296226]
[1759059699519,5.61521958,109650.0,109640.0,0.01296226]
[1759059699937,5.58869039,109650.0,109640.0,0.01296226]
[1759059701514,5.42425146,109650.0,109640.0,0.01296226]
[1759059701719,5.43856401,109650.0,109640.0,0.01296226]
[1759059707737,5.42425146,109650.0,109640.0,0.01296226]
[1759059710495,5.43856415,109650.0,109640.0,0.01296226]
[1759059710700,5.52727562,109650.0,109640.0,0.01296226]
[1759059716290,5.14531562,109650.0,109640.0,0.01296226]
[1759059716544,5.52715562,109650.0,109640.0,0.01296226]
[1759059718060,5.43207562,109650.0,109640.0,0.01296226]
[1759059718292,5.52715562,109650.0,109640.0,0.01296226]
[1759059721996,5.52715562,109650.0,109640.0,0.00987226]
[1759059722205,5.52715562,109650.0,109640.0,0.00789226]
[1759059744430,5.30508061,109650.0,109640.0,0.00789226]
[1759059745799,5.33523251,109650.0,109640.0,0.00789226]
[1759059746227,5.35852515,109650.0,109640.0,0.00789226]
[1759059746437,5.34421246,109650.0,109640.0,0.00789226]
[1759059748414,5.72449246,109650.0,109640.0,0.00789226]
[1759059749546,5.70119982,109650.0,109640.0,0.00789226]
[1759059749761,5.71551309,109650.0,109640.0,0.00789226]
[1759059750317,4.95339309,109650.0,109640.0,0.00789226]
[1759059750529,5.71551309,109650.0,109640.0,0.00789226]
[1759059752448,4.95339309,109650.0,109640.0,0.00789226]
[1759059752892,5.71559309,109650.0,109640.0,0.00789226]
[1759059756927,4.95339309,109650.0,109640.0,0.00789226]
[1759059757145,5.71559309,109650.0,109640.0,0.00789226]
[1759059757890,4.95339309,109650.0,109640.0,0.00789226]
[1759059758093,5.71555309,109650.0,109640.0,0.00789226]
[1759059760283,4.95339309,109650.0,109640.0,0.00789226]
[1759059760479,5.71555309,109650.0,109640.0,0.00789226]
[1759059766843,5.54209366,109650.0,109640.0,0.00789226]
[1759059770619,4.77993366,109650.0,109640.0,0.00789226]
[1759059770797,5.54205366,109650.0,109640.0,0.00789226]
[1759059772184,4.77993366,109650.0,109640.0,0.00789226]
[1759059772390,5.54205366,109650.0,109640.0,0.00789226]
[1759059773168,4.77993366,109650.0,109640.0,0.00789226]
[1759059773381,5.54205366,109650.0,109640.0,0.00789226]
[1759059773554,4.77993366,109650.0,109640.0,0.00789226]
[1759059773755,5.54205366,109650.0,109640.0,0.00789226]
[1759059776733,5.34791238,109650.0,109640.0,0.00789226]
[1759059779250,5.34787238,109650.0,109640.0,0.00994226]
[1759059779645,4.58579238,109650.0,109640.0,0.00994226]
[1759059779844,5.34787238,109650.0,109640.0,0.00994226]
[1759059781741,4.58579238,109650.0,109640.0,0.00994226]
[1759059781915,5.34787238,109650.0,109640.0,0.00994226]
[1759059782113,4.58579238,109650.0,109640.0,0.00994226]
[1759059782324,4.97268091,109650.0,109640.0,0.01306226]
[1759059782538,5.25912091,109650.0,109640.0,0.01306226]
[1759059782750,4.49708091,109650.0,109640.0,0.01306226]
[1759059782947,5.25912091,109650.0,109640.0,0.01306226]
[1759059787660,4.49708091,109650.0,109640.0,0.01306226]
[1759059787875,5.34783238,109650.0,109640.0,0.01306226]
[1759059791922,4.87219238,109650.0,109640.0,0.01306226]
[1759059792148,5.34779238,109650.0,109640.0,0.01306226]
[1759059801933,4.49708091,109650.0,109640.0,0.01306226]
[1759059802126,5.25904091,109650.0,109640.0,0.01306226]
[1759059806598,4.78344091,109650.0,109640.0,0.01306226]
[1759059806733,4.49708091,109650.0,109640.0,0.01306226]
[1759059806930,5.16392091,109650.0,109640.0,0.01306226]
[1759059807136,4.58579238,109650.0,109640.0,0.01306226]
[1759059807342,5.34771238,109650.0,109640.0,0.01306226]
[1759059808585,4.58579238,109650.0,109640.0,0.01306226]
[1759059809434,5.34771238,109650.0,109640.0,0.01306226]
[1759059809829,4.58579238,109650.0,109640.0,0.01306226]
[1759059810024,5.25900091,109650.0,109640.0,0.01306226]
[1759059813013,5.25900091,109650.0,109640.0,0.00789226]
[1759059814693,5.25900091,109650.0,109640.0,0.01005226]
[1759059814868,5.25900091,109650.0,109640.0,0.01300226]
[1759059815476,5.25900091,109650.0,109640.0,0.01005226]
[1759059815672,5.34771238,109650.0,109640.0,0.01005226]
[1759059816510,5.34771238,109650.0,109640.0,0.01300226]
[1759059821200,5.34771238,109650.0,109640.0,0.01005226]
[1759059821705,5.34771238,109650.0,109640.0,0.01300226]
[1759059825550,5.34771238,109650.0,109640.0,0.01005226]
[1759059826321,5.34771238,109650.0,109640.0,0.00789226]
[1759059830495,5.14638268,109650.0,109640.0,0.00789226]
[1759059846080,4.94615272,109650.0,109640.0,0.00789226]
[1759059847091,4.77472309,109650.0,109640.0,0.00789226]
[1759059848471,4.68601162,109650.0,109640.0,0.00789226]
[1759059851622,4.68601162,109650.0,109640.0,0.00999226]
[1759059852456,4.68601162,109650.0,109640.0,0.00789226]
[1759059859265,4.68581162,109650.0,109640.0,0.00789226]
[1759059859473,4.68581162,109650.0,109640.0,0.00999226]
[1759059859681,4.77452309,109650.0,109640.0,0.00999226]
[1759059862740,4.76020982,109650.0,109640.0,0.00999226]
[1759059864587,4.49809227,109650.0,109640.0,0.00999226]
[1759059864841,3.73637227,109650.0,109640.0,0.00999226]
[1759059865057,4.49805227,109650.0,109640.0,0.01293226]
[1759059865648,4.51236499,109650.0,109640.0,0.01293226]
[1759059866934,4.49805227,109650.0,109640.0,0.00999226]
[1759059867805,4.58676374,109650.0,109640.0,0.00999226]
[1759059870082,4.60107646,109650.0,109640.0,0.00999226]
[1759059871078,4.60107646,109650.0,109640.0,0.00789226]
[1759059877703,4.58676374,109650.0,109640.0,0.00789226]
[1759059878139,4.36916343,109650.0,109640.0,0.00789226]
[1759059878365,4.28045196,109650.0,109640.0,0.00789226]
[1759059880529,4.29476515,109650.0,109640.0,0.00789226]
[1759059887657,4.28045196,109650.0,109640.0,0.00998226]
[1759059888059,4.28045196,109650.0,109640.0,0.01292226]
[1759059888264,4.36916343,109650.0,109640.0,0.01292226]
[1759059888818,3.60748343,109650.0,109640.0,0.01292226]
[1759059889113,4.36904343,109650.0,109640.0,0.01292226]
[1759059890749,4.38335567,109650.0,109640.0,0.01292226]
[1759059891963,3.62179567,109650.0,109640.0,0.01292226]
[1759059892143,4.38335567,109650.0,109640.0,0.01292226]
[1759059897370,4.36904343,109650.0,109640.0,0.01292226]
[1759059900389,4.38335627,109650.0,109640.0,0.01292226]
[1759059901999,4.38335627,109650.0,109640.0,0.00789226]
[1759059907430,4.36904343,109650.0,109640.0,0.00789226]
[1759059910678,4.38335565,109650.0,109640.0,0.00789226]
[1759059917443,4.36904343,109650.0,109640.0,0.00789226]
[1759059919462,4.19447679,109650.0,109640.0,0.00789226]
[1759059920446,4.20878913,109650.0,109640.0,0.00789226]
[1759059927399,4.19447679,109650.0,109640.0,0.00789226]
[1759059930813,4.20878949,109650.0,109640.0,0.00789226]
[1759059937452,4.19447679,109650.0,109640.0,0.00789226]
[1759059938081,4.21776943,109650.0,109640.0,0.00789226]
[1759059940516,4.23208213,109650.0,109640.0,0.00789226]
[1759059943470,4.20878949,109650.0,109640.0,0.00789226]
[1759059946757,4.20878949,109650.0,109640.0,0.00999226]
[1759059946962,4.19447679,109650.0,109640.0,0.00999226]
[1759059949361,3.97892665,109650.0,109640.0,0.00999226]
[1759059949572,3.21736665,109650.0,109640.0,0.00999226]
[1759059950130,3.97868665,109650.0,109640.0,0.00999226]
[1759059950312,3.23167979,109650.0,109640.0,0.01315226]
[1759059950472,3.99299979,109650.0,109640.0,0.01315226]
[1759059957476,3.97868665,109650.0,109640.0,0.01315226]
[1759059957892,3.80781639,109650.0,109640.0,0.01315226]
[1759059958917,3.71910492,109650.0,109640.0,0.01315226]
[1759059960608,3.73341717,109650.0,109640.0,0.01315226]
[1759059961553,3.73341717,109650.0,109640.0,0.00789226]
[1759059963756,3.73341717,109650.0,109640.0,0.01001226]
[1759059967286,3.71910492,109650.0,109640.0,0.01001226]
[1759059967569,3.80781639,109650.0,109640.0,0.01001226]
[1759059970462,3.82212911,109650.0,109640.0,0.01001226]
[1759059975330,3.82212911,109650.0,109640.0,0.00789226]
[1759059977467,3.80781639,109650.0,109640.0,0.00789226]
[1759059980438,3.82212891,109650.0,109640.0,0.00789226]
[1759059984098,3.82212891,109650.0,109640.0,0.00999226]
[1759059984471,3.82212891,109650.0,109640.0,0.00789226]
[1759059985044,3.72684891,109650.0,109640.0,0.00789226]
[1759059985281,3.82196891,109650.0,109640.0,0.00789226]
[1759059987329,3.80765639,109650.0,109640.0,0.00789226]
[1759059990612,3.82196889,109650.0,109640.0,0.00789226]
[1759059997590,3.80765639,109650.0,109640.0,0.00789226]
[1759060000544,3.82196889,109650.0,109640.0,0.00789226]
[1759060007438,3.80765639,109650.0,109640.0,0.00789226]
[1759060008970,3.57849209,109650.0,109640.0,0.00789226]
[1759060009206,3.01410062,109650.0,109640.0,0.01293226]
[1759060009415,3.48970062,109650.0,109640.0,0.01293226]
[1759060010488,3.50401312,109650.0,109640.0,0.01293226]
[1759060010960,3.40889312,109650.0,109640.0,0.01293226]
[1759060011184,3.50401312,109650.0,109640.0,0.01293226]
[1759060012094,3.59272459,109650.0,109640.0,0.01293226]
[1759060015611,3.37616492,109650.0,109640.0,0.01293226]
[1759060016060,0.0301519,109630.0,109590.0,0.07295609]
[1759060016308,0.34,109610.0,109590.0,0.07295609]
[1759060016524,0.34,109610.0,109600.0,0.00197]
[1759060016750,8.62544,109610.0,109600.0,0.00197]
[1759060017184,8.65290615,109610.0,109600.0,0.00197]
[1759060017611,8.65290615,109610.0,109600.0,0.0020974]
[1759060018041,8.65290615,109610.0,109600.0,0.0295874]
[1759060018488,8.65290615,109610.0,109600.0,0.0325874]
[1759060018904,8.65290615,109610.0,109600.0,0.0385874]
[1759060019816,8.38178207,109610.0,109600.0,0.0385874]
[1759060020252,8.04178207,109610.0,109600.0,0.0385874]
[1759060020488,8.32722207,109610.0,109600.0,0.0385874]
[1759060022185,8.38178207,109610.0,109600.0,0.0385874]
[1759060022326,8.66722207,109610.0,109600.0,0.0385874]
[1759060022874,8.38178207,109610.0,109600.0,0.0385874]
[1759060023077,8.66722207,109610.0,109600.0,0.0385874]
[1759060023267,8.38178207,109610.0,109600.0,0.0385874]
[1759060023495,8.66722207,109610.0,109600.0,0.0385874]
[1759060025167,8.38178207,109610.0,109600.0,0.0385874]
[1759060025366,8.66722207,109610.0,109600.0,0.0385874]
[1759060026437,8.38178207,109610.0,109600.0,0.0385874]
[1759060026649,8.66722207,109610.0,109600.0,0.0385874]
[1759060027291,8.38178207,109610.0,109600.0,0.0385874]
[1759060027502,8.65290615,109610.0,109600.0,0.0385874]
[1759060029586,8.36746615,109610.0,109600.0,0.0385874]
[1759060029793,8.65290615,109610.0,109600.0,0.0385874]
[1759060030117,8.02746615,109610.0,109600.0,0.04744614]
[1759060030491,8.66722109,109610.0,109600.0,0.10683557]
[1759060030940,8.66722109,109610.0,109600.0,0.0885874]
[1759060037323,8.65290615,109610.0,109600.0,0.0885874]
[1759060040370,8.66722069,109610.0,109600.0,0.0885874]
[1759060042496,8.45454463,109610.0,109600.0,0.0885874]
[1759060044196,8.45499463,109610.0,109600.0,0.0885874]
[1759060044415,8.45499463,109610.0,109600.0,0.0836374]
[1759060047152,8.45499463,109610.0,109600.0,0.0336374]
[1759060047563,8.44068009,109610.0,109600.0,0.0336374]
[1759060050744,8.45499454,109610.0,109600.0,0.0336374]
[1759060057281,8.44068009,109610.0,109600.0,0.0336374]
[1759060057807,8.27479163,109610.0,109600.0,0.0336374]
[1759060059707,8.29808427,109610.0,109600.0,0.0336374]
[1759060060434,8.31239936,109610.0,109600.0,0.0336374]
[1759060064096,8.31239936,109610.0,109600.0,0.0357374]
[1759060064305,8.31239936,109610.0,109600.0,0.0336374]
[1759060067005,8.29808427,109610.0,109600.0,0.0336374]
[1759060067210,8.31298752,109610.0,109600.0,0.0336374]
[1759060070508,8.32730316,109610.0,109600.0,0.0336374]
[1759060070899,8.32714316,109610.0,109600.0,0.0336374]
[1759060072063,8.32686316,109610.0,109600.0,0.0336374]
[1759060072277,8.28894727,109610.0,109600.0,0.0355974]
[1759060072755,8.28894727,109610.0,109600.0,0.0336374]
[1759060072983,8.31251991,109610.0,109600.0,0.0336374]
[1759060075627,8.40763991,109610.0,109600.0,0.0336374]
[1759060075840,8.40123138,109610.0,109600.0,0.0336374]
[1759060076200,8.49635138,109610.0,109600.0,0.0336374]
[1759060077614,8.38691574,109610.0,109600.0,0.0336374]
[1759060077812,8.48203574,109610.0,109600.0,0.0336374]
[1759060080605,8.49635161,109610.0,109600.0,0.0336374]
[1759060082110,8.47305897,109610.0,109600.0,0.0336374]
[1759060085472,8.17343331,109610.0,109600.0,0.0336374]
[1759060086739,7.79303331,109610.0,109600.0,0.0336374]
[1759060086954,8.17315331,109610.0,109600.0,0.0336374]
[1759060089293,8.15883744,109610.0,109600.0,0.0336374]
[1759060090694,8.06371744,109610.0,109600.0,0.0336374]
[1759060090910,8.24754891,109610.0,109600.0,0.0336374]
[1759060091589,8.27084155,109610.0,109600.0,0.0336374]
[1759060092257,8.28515755,109610.0,109600.0,0.0336374]
[1759060094721,7.81604608,109610.0,109600.0,0.0387274]
[1759060094935,7.88787344,109610.0,109600.0,0.0356674]
[1759060095162,8.17315344,109610.0,109600.0,0.0387274]
[1759060095391,7.98999689,109610.0,109600.0,0.0387274]
[1759060096337,7.98954689,109610.0,109600.0,0.0387274]
[1759060097358,7.88011089,109610.0,109600.0,0.0387274]
[1759060097637,7.97523089,109610.0,109600.0,0.0387274]
[1759060099694,7.97519089,109610.0,109600.0,0.0387274]
[1759060100473,7.98950663,109610.0,109600.0,0.0387274]
[1759060101445,8.0786681,109610.0,109600.0,0.0387274]
[1759060103147,7.98995663,109610.0,109600.0,0.0387274]
[1759060104623,7.60959663,109610.0,109600.0,0.0387274]
[1759060104831,7.98995663,109610.0,109600.0,0.0387274]
[1759060105264,7.98995663,109610.0,109600.0,0.0356674]
[1759060107331,7.97564089,109610.0,109600.0,0.0356674]
[1759060107532,7.97564089,109610.0,109600.0,0.0387374]
[1759060108369,7.97564089,109610.0,109600.0,0.0356674]
[1759060108775,8.06435236,109610.0,109600.0,0.0356674]
[1759060110402,8.07866808,109610.0,109600.0,0.0356674]
[1759060111072,8.07866808,109610.0,109600.0,0.0336374]
[1759060112448,8.10196072,109610.0,109600.0,0.0336374]
[1759060114526,7.93042235,109610.0,109600.0,0.0336374]
[1759060116086,7.81841824,109610.0,109600.0,0.0336374]
[1759060116945,7.43805824,109610.0,109600.0,0.0336374]
[1759060117140,7.81841824,109610.0,109600.0,0.0336374]
[1759060117368,7.80410252,109610.0,109600.0,0.0336374]
[1759060118130,7.80406252,109610.0,109600.0,0.0336374]
[1759060120031,7.42374252,109610.0,109600.0,0.0387474]
[1759060120245,7.80406252,109610.0,109600.0,0.0356774]
[1759060120667,7.8183783,109610.0,109600.0,0.0356774]
[1759060126132,7.90708977,109610.0,109600.0,0.0356774]
[1759060127243,7.8183783,109610.0,109600.0,0.0356774]
[1759060127480,7.80406252,109610.0,109600.0,0.0356774]
[1759060130537,7.8183783,109610.0,109600.0,0.0356774]
[1759060137406,7.80406252,109610.0,109600.0,0.0356774]
[1759060137738,7.80406252,109610.0,109600.0,0.0336374]
[1759060140678,7.8186583,109610.0,109600.0,0.0336374]
[1759060141254,7.84195094,109610.0,109600.0,0.0336374]
[1759060142037,7.93066241,109610.0,109600.0,0.0336374]
[1759060142672,7.90736977,109610.0,109600.0,0.0336374]
[1759060142893,7.72407807,109610.0,109600.0,0.0336374]
[1759060143960,7.6353666,109610.0,109600.0,0.0336374]
[1759060146241,7.6353666,109610.0,109600.0,0.02962731]
[1759060147453,7.62105082,109610.0,109600.0,0.02962731]
[1759060150680,7.63536668,109610.0,109600.0,0.02962731]
[1759060150801,7.65865932,109610.0,109600.0,0.02962731]
[1759060151003,7.67205417,109610.0,109600.0,0.02962731]
[1759060153982,7.29173417,109610.0,109600.0,0.02962731]
[1759060154193,7.67201417,109610.0,109600.0,0.02962731]
[1759060155050,7.57689417,109610.0,109600.0,0.03176731]
[1759060155268,7.67201417,109610.0,109600.0,0.03479731]
[1759060156052,7.67201417,109610.0,109600.0,0.02962731]
[1759060157475,7.65769831,109610.0,109600.0,0.02962731]
[1759060160681,7.67201488,109610.0,109600.0,0.02962731]
[1759060162266,7.50131156,109610.0,109600.0,0.02962731]
[1759060167387,7.48699499,109610.0,109600.0,0.02962731]
[1759060170426,7.50131133,109610.0,109600.0,0.02962731]
[1759060177270,7.48699499,109610.0,109600.0,0.02962731]
[1759060180450,7.50131193,109610.0,109600.0,0.02962731]
[1759060184538,7.53146383,109610.0,109600.0,0.02962731]
[1759060184707,7.55171181,109610.0,109600.0,0.02962731]
[1759060184912,7.53174383,109610.0,109600.0,0.02962731]
[1759060185483,7.53174383,109610.0,109600.0,0.02362731]
[1759060186814,7.43658383,109610.0,109600.0,0.02362731]
[1759060187044,7.53170383,109610.0,109600.0,0.02062731]
[1759060187446,7.51738689,109610.0,109600.0,0.02062731]
[1759060187608,7.42326689,109610.0,109600.0,0.02062731]
[1759060187977,7.51838689,109610.0,109600.0,0.02062731]
[1759060188715,7.13814689,109610.0,109600.0,0.02062731]
[1759060188912,7.89894689,109610.0,109600.0,0.02062731]
[1759060189779,7.89866689,109610.0,109600.0,0.02062731]
[1759060190358,7.91298449,109610.0,109600.0,0.02062731]
[1759060190836,7.15218449,109610.0,109600.0,0.02062731]
[1759060191049,7.91302449,109610.0,109600.0,0.02062731]
[1759060192342,7.15218449,109610.0,109600.0,0.02062731]
[1759060192548,7.91302449,109610.0,109600.0,0.02279731]
[1759060194158,7.15218449,109610.0,109600.0,0.02279731]
[1759060194356,7.91302449,109610.0,109600.0,0.02279731]
[1759060195121,7.91302449,109610.0,109600.0,0.02062731]
[1759060195853,7.15218449,109610.0,109600.0,0.02062731]
[1759060196096,7.91302449,109610.0,109600.0,0.02062731]
[1759060199988,7.15218449,109610.0,109600.0,0.02062731]
[1759060200237,7.89870689,109610.0,109600.0,0.02062731]
[1759060202910,7.9130249,109610.0,109600.0,0.02062731]
[1759060205914,7.93327288,109610.0,109600.0,0.02062731]
[1759060206757,7.1524649,109610.0,109600.0,0.02062731]
[1759060206965,7.11549741,109610.0,109600.0,0.02062731]
[1759060207178,7.87633741,109610.0,109600.0,0.02062731]
[1759060207790,7.40061741,109610.0,109600.0,0.02062731]
[1759060208008,7.87633741,109610.0,109600.0,0.02062731]